Workbook

Sheet Eingabe
A18: Schwerpunktberechnung von Flächen bzw. Körpern | G18: Projekt: | H18: Bürogebäude XYZ | K18: 0.9350 | L18: Faktor Längen- zu Höhenmaßstab zur Einstellung der Maßstäblichkeit am Bildschirm
A19: gebildet aus Rechtecken bzw. Quadern | G19: Position: | H19: 0100 | J19: 1 | K19: 1.0770 | L19: Faktor Längen- zu Höhenmaßstab zur Einstellung der Maßstäblichkeit im Ausdruck
J20: -1
A21: Teilkörper | B21: + | C21: L | D21: H | E21: D | F21: Wichte | G21: x | H21: y | I21: z | K21: hier ist der Text für die Kopfzeile der Ausdrucke einzutragen
A22: ( Nr. ) | B22: - | C22: ( m ) | D22: ( m ) | E22: ( m ) | F22: ( to/m3 ) | G22: ( m ) | H22: ( m ) | I22: ( m ) | K22: Schwerpunktberechnung von Fertigteilen
A23: 1 | B23: 1 | C23: 6.00 | D23: 3.20 | E23: 0.20 | F23: 2.50 | G23: 0.00 | H23: 0.00 | I23: 0.00
A24: 2 | B24: -1 | C24: 1.00 | D24: 2.20 | E24: 0.20 | F24: 2.50 | G24: 0.30 | H24: 0.00 | I24: 0.00
A25: 3 | B25: -1 | C25: 2.20 | D25: 1.20 | E25: 0.20 | F25: 2.50 | G25: 1.80 | H25: 1.00 | I25: 0.00
A26: 4 | B26: 1 | C26: 1.25 | D26: 0.30 | E26: 0.30 | F26: 2.50 | G26: 0.40 | H26: 2.50 | I26: -0.20
A27: 5 | F27: 2.50
A28: 6 | F28: 2.50
A29: 7 | F29: 2.50
A30: 8 | F30: 2.50
A31: 9 | F31: 2.50
A32: 10 | F32: 2.50
A33: 11 | F33: 2.50
A34: 12 | F34: 2.50
A35: 13 | F35: 2.50
C37: A, V, G | D37: ( A, V, G)* x | E37: ( A, V, G)* y | F37: ( A, V, G)* z | G37: xs | H37: ys | I37: zs
C38: (m2,m3,to) | G38: ( m ) | H38: ( m ) | I38: ( m )
A39: Summen | C39: =SUM(C40:C52) -> 7.46 | D39: =SUM(D40:D52) -> 24.38 | E39: =SUM(E40:E52) -> 12.78 | F39: =SUM(F40:F52) -> 0.70 | G39: =D39/C39 -> 3.27 | H39: =E39/C39 -> 1.71 | I39: =F39/C39 -> 0.09
A40: 1 | C40: =B23*C23*D23*E23*F23 -> 9.60 | D40: =C40*(G23+C23/2) -> 28.80 | E40: =C40*(H23+D23/2) -> 15.36 | F40: =C40*(I23+E23/2) -> 0.96
A41: 2 | C41: -1.10 | D41: -0.88 | E41: -1.21 | F41: -0.11 | G41: Gesamt-Schwerpunkt
A42: 3 | C42: -1.32 | D42: -3.83 | E42: -2.11 | F42: -0.13
A43: 4 | C43: 0.28 | D43: 0.29 | E43: 0.75 | F43: -0.01 | G43: t x1 | H43: t x2 | I43: t x3
A44: 5 | C44: 0.00 | D44: 0.00 | E44: 0.00 | F44: 0.00 | G44: (m) | H44: (m) | I44: (m)
A45: 6 | C45: 0.00 | D45: 0.00 | E45: 0.00 | F45: 0.00 | G45: gewählt
A46: 7 | C46: 0.00 | D46: 0.00 | E46: 0.00 | F46: 0.00 | G46: 1.20 | H46: =(G39-G46)*2 -> 4.14 | I46: =C23-G46-H46 -> 0.66
A47: 8 | C47: 0.00 | D47: 0.00 | E47: 0.00 | F47: 0.00
A48: 9 | C48: 0.00 | D48: 0.00 | E48: 0.00 | F48: 0.00 | G48: t y3 (m) | I48: =D23-I50-I49 -> 0.57
A49: 10 | C49: 0.00 | D49: 0.00 | E49: 0.00 | F49: 0.00 | G49: t y2 (m) | I49: =(H39-I50)*2 -> 1.83
A50: 11 | C50: =B33*C33*D33*E33*F33 -> 0.00 | D50: 0.00 | E50: 0.00 | F50: 0.00 | G50: t y1 (m) | H50: gewählt | I50: 0.80
A51: 12 | C51: 0.00 | D51: 0.00 | E51: 0.00 | F51: 0.00 | G51: TA = Transportanker
A52: 13 | C52: 0.00 | D52: 0.00 | E52: 0.00 | F52: 0.00

Sheet Kontroll-Skizze
B24: Projekt: Bürogebäude XYZ Pos. 0100

Sheet Zoom
A1: Zähler | B1: Tabellenname | C1: Zoom Ausgangswert
A2: 1 | B2: Eingabe | C2: 85 | E2: AusgangsGröße
A3: 2 | B3: Kontroll-Skizze | C3: 190 | E3: Breite | F3: 1440
A4: 3 | B4: Zoom | C4: 100 | E4: Höhe | F4: 900
E6: ermittelter Faktor
E7: 1.2
